Cogmind - Beta 15 @@@ ROGUE MODE // 2025.06.08 @ 20:19:35 Player: the Result: Destroyed by LB-333(R) with Subdweller Laser Performance ------------- Evolutions (0) 0 Regions Visited (2) 400 Robots Destroyed (27) 135 Value Destroyed (492) 492 Prototype IDs (0) 0 Alien Tech Used (0) 0 Bonus (0) 0 TOTAL SCORE: 1027 Bonus ------- None Cogmind --------- Core Integrity 0/250 Matter 285/300 Energy 170/170 System Corruption 4% Temperature Cool (23) Movement Rolling (130) Ox2 Location -10/Subcaves Parts ------- > --- POWER (1) -------- Makeshift Power Source > --- PROPULSION (2) --- Compact Wheel Compact Wheel > --- UTILITY (2) ------ Huge Storage Unit Light Armor Plating > --- WEAPON (2) ------- Medium Laser Medium Laser > --- INVENTORY (25) --- Ion Engine Ion Engine Light Treads Light Treads Light Treads Compact Wheel Compact Wheel Heat Sink Heat Sink Disposable Heat Sink High-capacity Matter Pod (200) High-capacity Matter Pod (200) Structural Scanner Seismic Detector Seismic Detector Light Armor Plating Light Armor Plating Medium Laser Autogun Autogun Autogun Autogun Subdweller Machine Gun Mining Laser Peak State ------------ > --- POWER ------------ Makeshift Power Source > --- PROPULSION ------- Compact Wheel Compact Wheel > --- UTILITY ---------- Huge Storage Unit Light Armor Plating > --- WEAPON ----------- Medium Laser Medium Laser > --- INVENTORY -------- Light Treads Light Treads Light Treads Compact Wheel Compact Wheel Compact Wheel Heat Sink Heat Sink Disposable Heat Sink High-capacity Matter Pod High-capacity Matter Pod Structural Scanner Seismic Detector Seismic Detector Light Armor Plating Light Armor Plating Medium Laser Medium Laser Autogun Autogun Autogun Autogun Subdweller Machine Gun Mining Laser [Rating: 13] Favorites ----------- Power Ion Engine Engine Ion Engine Propulsion Compact Wheel Wheel Compact Wheel Utility Huge Storage Unit Device Seismic Detector Storage Huge Storage Unit Processor Signal Interpreter Protection Light Armor Plating Weapon Medium Laser Energy Gun Medium Laser Ballistic Gun Assault Rifle Special Weapon Mining Laser Build | -11 -10 -10 ------- Run | Yrd Mat Sub Slots Evolved . | . . . Power . | . . . Propulsion . | . . . Utility . | . . . Weapon . | . . . Parts Attached 32 | 8 17 7 Power 5 | 1 2 2 Engine 5 | 1 2 2 Core . | . . . Reactor . | . . . Propulsion 8 | 2 4 2 Treads . | . . . Leg . | . . . Wheel 8 | 2 4 2 Hover . | . . . Flight . | . . . Utility 10 | 3 4 3 Device 4 | 2 1 1 Storage 3 | 1 2 . Processor 1 | . 1 . Hackware . | . . . Protection 2 | . . 2 Artifact . | . . . Weapon 9 | 2 7 . Energy Gun 7 | 2 5 . Energy Cannon . | . . . Ballistic Gun 1 | . 1 . Ballistic Cannon . | . . . Launcher . | . . . Special Weapon 1 | . 1 . Impact Weapon . | . . . Slashing Weapon . | . . . Piercing Weapon . | . . . Special Melee Weapon . | . . . Unidentified Prototypes . | . . . Parts Lost 5 | . 1 4 Power 1 | . . 1 Propulsion 1 | . . 1 Utility 1 | . . 1 Weapon 2 | . 1 1 Highest Loss Streak 3 | . 1 3 To Critical Strikes . | . . . Average Backups 17 | 3 17 24 Power . | . 1 . Propulsion 4 | 1 4 6 Utility 7 | . 6 9 Weapon 4 | 1 4 7 Tool/Special . | . . . Unused Backups 20 | . 1 19 Power 1 | . . 1 Propulsion 6 | . 1 5 Utility 7 | . . 7 Weapon 6 | . . 6 Tool/Special . | . . . Average Slot Usage (%) 99 | . 99 97 Engine 13 | . 14 12 Wheel 28 | . 28 28 Device 10 | . 11 6 Storage 14 | . 14 14 Processor 1 | . 2 . Protection 1 | . . 7 Energy Gun 24 | . 24 27 Special Weapon 2 | . 3 . Peak Build Rating 13 | 7 9 13 Average Rating 8 | 5 8 10 On Entrance 5 | . 7 9 Naked Turns . | . . . Heaviest Build 92 | 12 90 92 Greatest Support 32 | 20 32 32 Greatest Overweight (x) 4 | 2 4 2 Average Overweight (x) 1 | . 1 2 Largest Inventory Capacity 25 | 8 25 25 Average Capacity 21 | 7 21 25 Most Carried 25 | 8 25 25 Average Carried 17 | 3 17 24 Final Capacity 25 | 8 25 25 Final Carried 25 | 8 25 24 Class Distribution -------------------- 100% | Mutant Dominant Class ---------------- Mutant | -10/Materials Mutant | -10/Subcaves Resources | -11 -10 -10 ----------- Run | Yrd Mat Sub Matter Collected 1146 | 280 777 89 Remotely . | . . . Salvage Created 795 | 101 528 166 Parts 57 | 12 36 9 Haulers Intercepted 2 | . 2 . Recyclers Shooed 1 | . 1 . Parts Field Recycled . | . . . Retrieved Matter . | . . . Parts Self-Destructed 5 | . . 5 Prevented . | . . . Kills | -11 -10 -10 ------- Run | Yrd Mat Sub Combat Hostiles Destroyed 17 | . 13 4 Guns 16 | . 12 4 AOE 1 | . 1 . Classes Destroyed 7 | 1 5 1 Tunneler 4 | 4 . . Hauler 2 | . 2 . Recycler 1 | . 1 . Watcher 3 | . 3 . Swarmer 9 | . 9 . Grunt 4 | . 4 . Subdweller 4 | . . 4 Best Kill Streak 6 | 4 6 3 Combat Bots Only 6 | . 6 3 Max Kills in Single Turn 2 | 1 2 1 Gunslinging 1 | . 1 . Exploded 1 | . 1 . Melee . | . . . Uniques/NPCs Destroyed . | . . . Combat | -11 -10 -10 -------- Run | Yrd Mat Sub Hostile Shots Fired 76 | . 37 39 Missed 20 | . 8 12 Hits 56 | . 29 27 Projectile 56 | . 29 27 Critical Strikes 2 | . 1 1 Damage Taken 989 | . 356 633 Core 257 | . 45 212 Absorbed by Shields . | . . . Regen/Repaired (Parts) 27 | . 27 . Core Remaining (%) 100 | 100 . . Volleys Fired 94 | 11 63 20 Largest 2 | 2 2 2 Hottest 150 | 90 150 100 Shots Fired 173 | 22 111 40 Gun 157 | 22 95 40 Cannon . | . . . Launcher . | . . . Special 16 | . 16 . Kinetic 3 | . 3 . Thermal 170 | 22 108 40 Explosive . | . . . Electromagnetic . | . . . Robot Hit Streak 12 | 2 7 12 Robot Miss Streak 4 | 2 4 2 Penetration Max . | . . . Secondary Targets 2 | . 2 . Max Gunslinging Chain 1 | . 1 . Shots Hit Robots 92 | 12 47 33 Core Hits 41 | 4 27 10 Critical Kills . | . . . Critical Parts Destroyed . | . . . Critical Strikes 7 | 1 3 3 Burn 7 | 1 3 3 Melee Attacks . | . . . Impact . | . . . Slashing . | . . . Piercing . | . . . Sneak Attacks . | . . . Combat Hostiles . | . . . Follow-up Attacks . | . . . Damage Inflicted 1211 | 166 666 379 Guns 1094 | 166 549 379 Cannons . | . . . Explosions 117 | . 117 . Melee . | . . . Ramming . | . . . Kinetic . | . . . Thermal 1094 | 166 549 379 Explosive 117 | . 117 . Electromagnetic . | . . . Impact . | . . . Slashing . | . . . Piercing . | . . . Highest Corruption 4 | . 4 4 Average Corruption 3 | . 3 4 Corruption Purged . | . . . Corruption Blocked . | . . . Effects 38 | . 31 7 Message Errors 6 | . 5 1 Matter Fused 12 | . 12 . Heat Flow Errors 6 | . 5 1 Energy Discharges 4 | . 2 2 Data Loss (minor) 3 | . 1 2 Misfires 4 | . 4 . Alerts 2 | . 1 1 Weapon Failures 1 | . 1 . Overload Shots . | . . . Overflow Damage 49 | . 49 . Projectiles . | . . . Explosions 49 | . 49 . Melee . | . . . Knockbacks . | . . . Impact . | . . . Kinetic . | . . . Secondary . | . . . Self-Inflicted Damage 75 | . 75 . Shots 1 | . 1 . Rammed . | . . . Targets Rammed . | . . . Kicked . | . . . Crushed . | . . . Highest Temperature 228 | 150 228 144 Average Temperature 63 | 71 63 38 Received Heat Transfer 135 | . 54 81 Effects 3 | . 3 . Interference 3 | . 3 . Siege Activations . | . . . Martial Activations . | . . . Shielding Activations . | . . . Robots Disrupted . | . . . Combat Hostiles . | . . . Robots Corrupted . | . . . Combat Hostiles . | . . . Parts Fried . | . . . Impact Corruptions . | . . . Robots Melted . | . . . Combat Hostiles . | . . . Parts Melted 5 | . 4 1 Heat Transferred 3549 | 520 1697 1332 Parts Sabotaged . | . . . Parts Stolen . | . . . Parts Stripped . | . . . Power Chain Reactions . | . . . Alert | -11 -10 -10 ------- Run | Yrd Mat Sub Maximum Alert Level 1 | . 1 . Low Security (%) 86 | 100 85 . Level 1 13 | . 14 . Level 2 . | . . . Level 3 . | . . . Level 4 . | . . . Level 5 . | . . . High Security . | . . . Max Security . | . . . Peak Influence 258 | 10 258 . Initial . | . . . Average 64 | 1 68 . Influence Increases 495 | 20 475 . Destroy 0b10 Robot/C 260 | . 260 . Destroy 0b10 Robot/NC 50 | 20 30 . Destroy Leader 70 | . 70 . Successful Hack 18 | . 18 . Disable Machine 30 | . 30 . Destroy Structure 37 | . 37 . Lose Combat Pursuer 30 | . 30 . Influence Decreases 495 | 20 475 . Time Decay 485 | 20 465 . Lost Part 10 | . 10 . Squads Dispatched 3 | . 3 . Investigation 2 | . 2 . Extermination . | . . . Reinforcement 1 | . 1 . Assault . | . . . Garrison . | . . . Intercept . | . . . Searches Triggered . | . . . Construction Impeded . | . . . Haulers Reinforced . | . . . Active Scanning Responses . | . . . Cargo Convoy Interrupts . | . . . Stealth | -11 -10 -10 --------- Run | Yrd Mat Sub Distress Signals . | . . . Communications Jammed . | . . . Distress Signals . | . . . Times Spotted 30 | . 23 7 Peak Tracking Total 5 | . 5 3 Tactical Retreats 1 | . 1 . Traps | -11 -10 -10 ------- Run | Yrd Mat Sub Traps Triggered 6 | . 6 . Indirectly . | . . . Trap Hack Attempts . | . . . Triggered . | . . . Disarmed . | . . . Reprogrammed . | . . . Reused . | . . . Traps Extracted . | . . . Installed . | . . . Triggered . | . . . Machines | -11 -10 -10 ---------- Run | Yrd Mat Sub Machines Disabled 2 | . 2 . Max in Single Turn 1 | . 1 . Machines Repaired . | . . . Machines Dismantled . | . . . Machines Sabotaged . | . . . Overloaded Fab Kills . | . . . Hacking | -11 -10 -10 --------- Run | Yrd Mat Sub Machines Accessed 7 | . 7 . Terminals 6 | . 6 . Fabricators . | . . . Repair Stations 1 | . 1 . Recycling Units . | . . . Scanalyzers . | . . . Garrison Access . | . . . Total Hacks 24 | . 24 . Successful 10 | . 10 . Failed 13 | . 13 . Catastrophic 3 | . 3 . Database Lockouts 1 | . 1 . Manual 12 | . 12 . Terminals 22 | . 22 . Fabricators . | . . . Repair Stations 2 | . 2 . Recycling Units . | . . . Scanalyzers . | . . . Garrison Access . | . . . Terminal Hacks 4 | . 4 . Part Schematic 1 | . 1 . Hauler Manifests 1 | . 1 . Registered Components 1 | . 1 . Zone Layout 1 | . 1 . Fabricator Hacks . | . . . Repair Station Hacks 2 | . 2 . Scan Component 1 | . 1 . Repair 1 | . 1 . Recycling Unit Hacks . | . . . Scanalyzer . | . . . Garrison Access Hacks . | . . . Unauthorized Hacks 4 | . 4 . Terminals 4 | . 4 . Botnet 3 | . 3 . Operators 1 | . 1 . Fabricators . | . . . Repair Stations . | . . . Recycling Units . | . . . Scanalyzers . | . . . Garrison Access . | . . . Data Cores Recovered . | . . . Used . | . . . Hacking Detections 7 | . 7 . Full Trace Events . | . . . Feedback Events . | . . . Feedback Blocked . | . . . Robot Schematics Acquired . | . . . Robots Built . | . . . Authchips . | . . . Time . | . . . Total Robot Build Rating . | . . . Part Schematics Acquired 1 | . 1 . Parts Built . | . . . Authchips . | . . . Time . | . . . Total Part Build Rating . | . . . Parts Repaired 1 | . 1 . Time 26 | . 26 . Parts Recycled . | . . . Recycled Matter . | . . . Retrieved Matter . | . . . Retrieved Components . | . . . Parts Scanalyzed . | . . . Part Schematics Acquired . | . . . Parts Damaged . | . . . Bothacking | -11 -10 -10 ------------ Run | Yrd Mat Sub Used RIF Installer . | . . . Robots Hacked . | . . . Non-combat . | . . . Combat . | . . . Robot Hacks Applied . | . . . Relay Couplers Released . | . . . Fabnet Peak Effective % . | . . . Robots Rewired . | . . . Allies Hacked . | . . . Hacks Repelled . | . . . Allies | -11 -10 -10 -------- Run | Yrd Mat Sub Total Allies . | . . . Largest Group . | . . . Highest-Rated Group . | . . . Highest-Rated Ally . | . . . Total Orders . | . . . Ally Attacks . | . . . Total Damage . | . . . Kills . | . . . Allies Corrupted . | . . . Allies Melted . | . . . Intel | -11 -10 -10 ------- Run | Yrd Mat Sub Active Infowar (turns) 1352 | 49 1154 149 Seismic 1352 | 49 1154 149 Robot Analysis Total . | . . . Derelict Logs Recovered 2 | . . 2 Drone Launches . | . . . Drone Recoveries . | . . . Exploration | -11 -10 -10 ------------- Run | Yrd Mat Sub Turns Passed 2434 | 111 1983 340 Spaces Moved 1579 | 73 1347 159 Core 8 | 8 . . Treads . | . . . Legs . | . . . Wheels 1571 | 65 1347 159 Hover . | . . . Flight . | . . . Fastest Speed 50 | 50 80 130 Average Speed 118 | 81 119 130 Slowest Speed 150 | 150 140 130 Overloaded Moves . | . . . Propulsion Burnouts . | . . . Robots Hopped . | . . . Potential Cave-ins . | . . . Cave-ins Triggered . | . . . Exploration Rate (%) 41 | 4 100 19 Regions Visited 2 Branch Regions 1 Pre-discovered Areas . | . . . Known Exits Taken 1 | . 1 . Unknown Exits Taken 1 | 1 . . Scrap Searched . | . . . Spaces Dug 14 | . 14 . Terrain Destroyed 41 | . 41 . Melee . | . . . Projectile 15 | . 15 . AOE 26 | . 26 . Terrain Rammed . | . . . Walls Destroyed . | . . . Machines Disabled . | . . . Actions | -11 -10 -10 --------- Run | Yrd Mat Sub Total 1927 | 98 1579 250 Wait 156 | . 101 55 Move 1577 | 72 1346 159 Hop . | . . . Pick Up 37 | 7 26 4 Fast Attach 7 | 7 . . Attach 7 | . 3 4 Detach . | . . . Swap 34 | 1 26 7 Drop 15 | . 14 1 Fire 94 | 11 63 20 Melee . | . . . Ram . | . . . Kick . | . . . Crush . | . . . Escape Stasis . | . . . Rewire . | . . . Trap . | . . . Miscellaneous . | . . . Route ------- -11/Scrapyard -10/Materials (discovered 6 exits: *Mat x3 / *Min x2 / *Sub) -10/Subcaves History --------- Turn | Location | Event 30 | -11/Scrapyard | Discovered new exit (range 15) 112 | -11/Scrapyard | Entered Materials 307 | -10/Materials | Build established: Mutant 354 | -10/Materials | Discovered new exit (range 4) 947 | -10/Materials | Discovered new exit (range 8) 999 | -10/Materials | Discovered new exit (range 4) 1152 | -10/Materials | Central database locked down 1188 | -10/Materials | Discovered new exit (range 5) 1264 | -10/Materials | Discovered new exit (range 16) 1321 | -10/Materials | Discovered new exit (range 4) 1490 | -10/Materials | Identified exit to Subcaves 1521 | -10/Materials | Identified exit to Materials 1586 | -10/Materials | Identified exit to Mines 1918 | -10/Materials | Repaired Med. Laser 2095 | -10/Materials | Entered Subcaves 2111 | -10/Subcaves | Learned location of 1 exit from Materials 2152 | -10/Subcaves | Core integrity fell below 50% 2201 | -10/Subcaves | Lost 3 parts (1p1n1u) 2342 | -10/Subcaves | Learned Materials trap positions 2406 | -10/Subcaves | Core integrity fell below 20% 2435 | -10/Subcaves | Destroyed by LB-333(R) with Subdweller Laser Last Messages --------------- 02336_ Acquired 20 matter. 02342_ Acquired derelict log, extracted data. Data stored: Materials trap records. 02345_ YVIJLMRTNNFTZW2PIFDP 2% 02350_ Subatomizers dissect the Mak. Leg. 02350_ Acquired Unknown Engine. 02350_ Identified Mak. Power Source. 02352_ Acquired Ion Engine. 02353_ Acquired 10 matter. 02371_ System corrupted: Component data lost. 02380_ Subatomizers dissect the Cobbler Unit. 02386_ Dropped Com. Wheel. 02386_ Acquired Ion Engine. 02391_ Subatomizers dissect the Cobbler Unit. 02396_ System corrupted: Component data lost. 02396_ Acquired 10 matter. 02402_ Subatomizers dissect the Cobbler Unit. 02409_ Med. Laser destroyed. 02413_ Subatomizers dissect the Cobbler Unit. 02433_ LB-333(R) suffers critical hit (Burn). Map ----- +----------------------------------------------------+ | ?????????????????????????## #?????????????? | | ?????????????????????????#### ##?????????????? | | ?????????????????????????# ## ##??????????????? | | ?????????????????????????# #???????????????? | | ?????????????????????????## ##???????????????? | | ??????????????????????????## #????????????????? | | ???????????????????????????## ##???????????????? | | ????????????????????????????# #???????????????? | | ????????????????????????????## #???????????????? | | ?????????????????????????????# #???????????????? | | ???????????????????????????### ##???????????????? | | ???????????????????????????# #????????????????? | | ????????????????????####??## ! #????????????????? | | ?????????????# ###### # ### #%&##????????????????? | | ?????????? ##&& #????????????????? | | ?????????? #????????????????? | | ??????????????#### ### # #????????????????? | | ?????????????????#?????# # ##????????????????? | | ???????????????????????## # ##????????????????? | | ???????????????????????# = ## #????????????????? | | ???????????????????????##% # ##????????????????? | | ????????????????????????# # #????????????????? | | ???????????????????????## # ###???????????????? | | ???????????????????????# ###?????????????? | | ???????????????????????# R ##????????????? | | ?????????????????????####@ R #????????????? | | ???????????????##??### #### #????????????? | | ???????????????"& ##" ##?## #????????????? | | ????????????????# ##?# ###???????????? | | ???????????????????#" % #### ## #???????????? | | ??????????????????## % " #???????????? | | ??????????????????# = #???????????? | | ??????????????????## %% %###???????????? | | ???????????????#### ### #????????????? | | ???????????????# ! #"# ##???#????????????? | | ???????????????## ]%#"#### ???????????????? | | ????????????????## #????### #?????????????? | | ?????????????????## =#???????## ##?????????????? | | ??????????????????# #?????????##??????????????? | | ??????????????????### "?????????????????????????? | | ????????????????????# ?????????????????????????? | | ???????????????????? ?????????????????????????? | | ???????????????????? ????????????????????????? | | ???????????????????## ????????????????????????? | | ????????????????????# #????????????????????????? | | ???????????????????? ##????????????????????????? | | ???????????????????? #?????????????????????????? | | ????????????????????# ?????????????????????????? | | ???????????????????? ?????????????????????????? | | ???????????????????? ?????????????????????????? | +----------------------------------------------------+ Best States ------------- Heat Dissipation 35 Energy Generation 15 Energy Capacity 250 Matter Stores 300 Matter Capacity 300 Sight Range 16 Terrain Scan Density 10 Armor Coverage 150 Evasion (%) 44 Item Schematics ----------------- Hcp. Storage Unit | -10/Materials | Hacked Robot Schematics ------------------ None Fabricated ------------ Nothing Repaired ---------- Med. Laser | 61% | -10/Materials Alien Tech Used ----------------- None Achievements -------------- None Challenges ------------ None Game ------ Seed BattleDerelictRail Manual? 0 Play Time 00:31:05 Cumulative 128.3 hours Start 2025.06.08 @ 19:11:27 End 2025.06.08 @ 20:19:35 Sessions 3 Manual Loads 0 Difficulty Rogue Special Mode None Game No. 92 Rogue 92 Adventurer 0 Explorer 0 Win Type - Total 1 Types 1/0/0/0/0/0/0/0/0/0 Lore% 42 Gallery% 47 Achievement% 42 Wizard Run 0 Options --------- Layout 1 ASCII 0 Keyboard 0 Movement Mouse Keybinds 0 Fullscreen 1 Font 32/SmallcapsGlow Map View 50x35 Zoom Use 0% Tactical HUD 1 Map Filters NONE Filters NONE Steam 1 RUN: b4023f6d-2354-4021-a56e-8e685e8f8f97